bitfinex/quotes_ETHUSD_20250520
["timestamp","ask_amount","ask_price","bid_price","bid_amount"]
[1747712634260,3.91941679,2551.4,2551.2,16.917]
[1747712634552,3.91957041,2551.3,2551.2,16.917]
[1747712634752,3.91957041,2551.3,2551.2,25.226]
[1747712634953,3.91957041,2551.3,2551.2,33.226]
[1747712635853,3.91957041,2551.3,2551.2,25.226]
[1747712636859,3.91957041,2551.3,2551.2,27.87101536]
[1747712637716,3.91929964,2551.5,2551.2,27.87101536]
[1747712638144,3.91929964,2551.5,2551.3,0.7569]
[1747712638338,3.91929964,2551.5,2551.4,0.32718609]
[1747712639055,3.91919118,2551.6,2551.4,0.32718609]
[1747712639217,3.91919118,2551.6,2551.4,3.22269624]
[1747712639422,3.91919118,2551.6,2551.5,0.32717327]
[1747712639625,3.91901731,2551.7,2551.5,8.32717327]
[1747712640326,3.91886767,2551.8,2551.5,8.32717327]
[1747712640623,3.91881436,2551.8,2551.6,0.8152]
[1747712640828,3.91881436,2551.8,2551.7,9.55138496]
[1747712642383,3.91881436,2551.8,2551.7,8.63714763]
[1747712646036,4.46881436,2551.8,2551.7,8.63714763]
[1747712647766,4.46881436,2551.8,2551.7,0.32714763]
[1747712657685,5.98870391,2551.8,2551.7,0.32714763]
[1747712657870,6.76180391,2551.8,2551.7,0.32714763]
[1747712659082,14.76180391,2551.8,2551.7,0.32714763]
[1747712659888,4.47003136,2551.0,2550.7,0.62335753]
[1747712660091,5.24313136,2551.0,2550.7,0.62335753]
[1747712660766,4.47126107,2550.2,2550.0,8.279]
[1747712660965,4.47126107,2550.2,2550.1,0.37735289]
[1747712662558,4.47126107,2550.2,2550.1,0.05]
[1747712662968,3.92126107,2550.2,2550.1,0.05]
[1747712663164,0.8269,2550.7,2550.1,1.6707]
[1747712663485,3.92076699,2550.6,2550.1,9.6707]
[1747712663794,3.92076699,2550.6,2550.2,0.7883]
[1747712663990,3.9205303,2550.7,2550.2,0.7883]
[1747712664291,3.92064954,2550.6,2550.3,2.13595859]
[1747712664788,3.92085595,2550.5,2550.3,2.13595859]
[1747712665091,3.92085595,2550.5,2550.3,2.4632858]
[1747712665278,3.92068753,2550.6,2550.3,2.4632858]
[1747712665479,3.92068753,2550.6,2550.4,8.24632858]
[1747712665655,3.92068753,2550.6,2550.5,8.281]
[1747712665986,3.92068753,2550.6,2550.5,8.60830155]
[1747712667985,3.92055855,2550.7,2550.5,8.60830155]
[1747712668160,3.92038318,2550.8,2550.6,0.86083016]
[1747712668352,3.92038318,2550.8,2550.7,0.8081]
[1747712669993,3.92038318,2550.8,2550.5,25.53430155]
[1747712669994,3.92064612,2550.6,2550.5,26.34240155]
[1747712670163,3.92064612,2550.6,2550.5,18.06140155]
[1747712670491,3.92064612,2550.6,2550.5,17.25330155]
[1747712670991,4.47064612,2550.6,2550.5,17.25330155]
[1747712671170,12.47064612,2550.6,2550.5,17.25330155]
[1747712671367,4.47064612,2550.6,2550.5,17.25330155]
[1747712671592,4.47064612,2550.6,2550.5,0.32730155]
[1747712674695,3.92126107,2550.2,2550.1,0.05]
[1747712674900,3.92126107,2550.2,2550.1,8.332]
[1747712676203,6.02350012,2550.2,2550.1,0.05]
[1747712676404,14.02350012,2550.2,2550.1,0.05]
[1747712679275,6.02350012,2550.2,2550.1,0.05]
[1747712679481,3.92126107,2550.2,2550.1,0.05]
[1747712679862,4.47126107,2550.2,2550.1,0.05]
[1747712681202,4.47126107,2550.2,2550.1,8.333]
[1747712681203,3.92126107,2550.2,2550.1,8.333]
[1747712681413,3.92126107,2550.2,2550.1,9.24481]
[1747712681697,3.92126107,2550.2,2550.1,8.333]
[1747712683801,12.47126107,2550.2,2550.1,8.333]
[1747712684370,13.29776107,2550.2,2550.1,0.05]
[1747712685079,11.92126107,2550.2,2550.1,0.05]
[1747712685767,3.92018503,2550.9,2550.1,0.7581]
[1747712685982,3.92126107,2550.2,2550.1,0.7581]
[1747712686395,3.92126107,2550.2,2550.1,9.36945289]
[1747712689104,4.47126107,2550.2,2550.1,0.32735289]
[1747712689275,3.92126107,2550.2,2550.1,8.57835289]
[1747712689607,3.92126107,2550.2,2550.1,9.38295289]
[1747712692879,3.92018503,2550.9,2550.1,9.38295289]
[1747712692880,3.92102842,2550.4,2550.1,10.01222528]
[1747712693081,3.92117666,2550.3,2550.2,0.32734005]
[1747712694511,3.92117666,2550.3,2550.2,8.57834005]
[1747712695099,4.47117666,2550.3,2550.2,8.57834005]
[1747712696509,4.47117666,2550.3,2550.2,0.32734005]
[1747712696706,5.38625717,2550.3,2550.2,0.32734005]
[1747712699405,4.47117666,2550.3,2550.2,0.32734005]
[1747712700286,3.92117666,2550.3,2550.2,0.32734005]
[1747712702185,4.47117666,2550.3,2550.2,0.32734005]
[1747712702381,5.24427666,2550.3,2550.2,0.32734005]
[1747712702610,5.24427666,2550.3,2549.4,8.0]
[1747712702611,4.47233771,2549.5,2549.4,0.46725358]
[1747712703195,3.92233771,2549.5,2549.4,0.46725358]
[1747712703902,3.92233771,2549.5,2549.4,0.84209817]
[1747712705534,3.92233771,2549.5,2549.4,0.37484459]
[1747712705832,3.92233771,2549.5,2549.4,1.29399905]
[1747712706619,4.47126107,2550.2,2549.4,1.29399905]
[1747712706828,4.47126107,2550.2,2549.5,18.10574459]
[1747712706829,3.92196968,2549.8,2549.5,18.10574459]
[1747712707009,3.9206391,2550.7,2549.7,0.7537]
[1747712707188,3.92018503,2550.9,2549.9,0.7537]
[1747712707419,3.92057804,2550.7,2550.1,0.7537]
[1747712707622,3.92064612,2550.6,2550.3,0.7537]
[1747712707822,3.92057804,2550.7,2550.3,8.7537]
[1747712707823,3.92082274,2550.5,2550.3,8.7537]
[1747712708023,3.920689,2550.6,2550.3,8.7537]
[1747712708219,3.92057077,2550.7,2550.4,1.70047]
[1747712708532,3.92057077,2550.7,2550.6,0.8145]
[1747712708750,3.92040877,2550.8,2550.6,0.8145]
[1747712708913,0.8054,2551.4,2550.8,8.0]
[1747712708914,3.91991062,2551.1,2550.8,8.0]
[1747712709254,3.92018503,2550.9,2550.8,8.0]
[1747712709825,3.92018503,2550.9,2550.8,8.37484459]
[1747712710818,3.91991409,2551.1,2550.8,8.37484459]
[1747712711120,3.91997796,2551.1,2550.9,0.8252]
[1747712711714,3.91924445,2551.6,2550.9,0.8252]
[1747712711715,3.91981613,2551.2,2550.9,0.8252]
[1747712711949,3.91987769,2551.1,2551.0,0.88252]
[1747712712448,3.91975815,2551.2,2551.0,0.88252]
[1747712712746,4.72438215,2551.7,2551.0,0.88252]
[1747712712946,3.91982164,2551.2,2551.1,0.37387306]
[1747712713550,3.91982164,2551.2,2551.1,8.62387306]
[1747712714455,0.8054,2551.7,2551.1,9.19490731]
[1747712714754,3.91970144,2551.3,2551.1,9.19490731]
[1747712715323,3.91972405,2551.2,2551.1,9.19490731]
[1747712716423,3.91972405,2551.2,2551.1,17.19490731]
[1747712717452,3.91950845,2551.4,2551.3,0.7828]
[1747712717658,3.91950845,2551.4,2551.3,1.78057073]
[1747712718247,3.91950845,2551.4,2551.3,0.7828]
[1747712718652,3.91957041,2551.3,2551.2,8.0]
[1747712719049,3.91987769,2551.1,2551.0,0.7598]
[1747712719243,3.91987769,2551.1,2551.0,16.9828]
[1747712719459,3.91987769,2551.1,2551.0,18.68108]
[1747712722455,0.823,2551.9,2551.1,8.0]
[1747712722456,3.91958605,2551.3,2551.1,8.0]
[1747712723084,0.823,2551.9,2551.6,3.91896912]
[1747712723085,0.05,2551.9,2551.6,3.91896912]
[1747712723244,0.05,2551.9,2551.1,8.7658]
[1747712723245,0.05,2551.9,2551.8,8.7658]
[1747712723586,0.05,2551.9,2551.8,20.37898]
[1747712725074,0.05,2551.9,2551.8,33.73709241]
[1747712725288,0.05,2551.9,2551.8,32.74873241]
[1747712725879,0.753,2553.2,2551.8,32.74873241]
[1747712726039,3.91636808,2553.4,2552.5,8.0]
[1747712726244,3.91636808,2553.4,2551.8,11.61318]
[1747712726245,4.66909411,2553.6,2552.7,8.0]
[1747712726443,4.66909411,2553.6,2552.8,33.145]
[1747712726444,0.753,2553.6,2552.8,33.145]
[1747712726664,3.9167631,2553.2,2552.8,33.145]
[1747712726872,3.9168306,2553.1,2552.8,41.203017]
[1747712727043,3.91704044,2553.0,2552.8,26.931]
[1747712727245,3.98711387,2552.9,2552.8,33.143]
[1747712727439,0.07,2552.9,2552.8,36.65455793]
[1747712728082,0.07,2552.9,2552.8,45.77760793]
[1747712728241,0.07,2552.9,2552.8,44.59160793]
[1747712728576,0.07,2552.9,2552.8,36.65455793]
[1747712728961,0.07,2552.9,2552.8,25.143]
[1747712728962,3.98711387,2552.9,2552.8,25.143]
[1747712729779,3.98711387,2552.9,2552.8,25.142]
[1747712731480,3.98711387,2552.9,2552.8,16.923]
[1747712731481,4.53711387,2552.9,2552.8,16.923]
[1747712731666,4.53711387,2552.9,2552.8,25.142]
[1747712732049,4.53711387,2552.9,2551.7,0.19021875]
[1747712732050,0.8332,2552.8,2551.7,0.19021875]
[1747712732241,0.8332,2552.8,2551.5,0.46725358]
[1747712732242,3.91910957,2551.6,2551.5,0.46725358]
[1747712732481,4.75130662,2552.3,2551.6,8.0]
[1747712732661,3.91764434,2552.6,2551.6,8.0]
[1747712732662,3.91848575,2552.1,2551.7,0.8183]
[1747712732846,3.9182445,2552.2,2551.7,0.8183]
[1747712733178,3.91842023,2552.1,2551.8,1.27373268]
[1747712733386,3.91818822,2552.2,2551.8,1.27373268]
[1747712733387,3.9185061,2552.0,2551.8,1.27373268]
[1747712733810,3.91864884,2551.9,2551.8,1.27373268]
[1747712734790,3.91880241,2551.8,2551.7,0.8183]
[1747712734956,3.91880241,2551.8,2551.7,17.0363]
[1747712737084,3.91871254,2551.9,2551.7,17.0363]
[1747712739410,3.91857509,2552.0,2551.7,17.0363]
[1747712739772,3.91867479,2551.9,2551.7,17.0363]
[1747712739972,3.91835908,2552.1,2551.8,1.70363]
[1747712740306,5.873,2554.1,2551.8,1.70363]
[1747712740307,0.8314,2552.9,2552.0,8.7631]
[1747712740620,3.91744251,2552.7,2552.0,4.68148465]
[1747712741115,3.91769866,2552.6,2552.0,12.68151358]
[1747712741282,3.91769866,2552.6,2552.1,8.0]
[1747712741486,3.91769866,2552.6,2552.2,26.40215136]
[1747712741783,3.91769866,2552.6,2552.2,26.7751035]
[1747712742400,3.917436,2552.7,2552.2,17.28895214]
[1747712742401,3.91803471,2552.3,2552.2,17.28895214]
[1747712742625,3.91803471,2552.3,2552.2,33.50595214]
[1747712743375,3.91803471,2552.3,2552.2,33.133]
[1747712745317,4.67553471,2552.3,2552.2,24.916]
[1747712745492,3.91803471,2552.3,2552.2,33.133]
[1747712746815,3.91803471,2552.3,2552.2,36.4463]
[1747712747019,3.91656887,2553.3,2552.2,40.170863]
[1747712747020,3.91780274,2552.5,2552.2,40.170863]
[1747712747216,3.91780274,2552.5,2552.2,37.2501]
[1747712747404,3.91803471,2552.3,2552.2,37.2501]
[1747712748294,3.91803471,2552.3,2552.2,25.133]
[1747712748617,3.91803471,2552.3,2552.2,25.50647769]
[1747712749523,5.29513471,2552.3,2552.2,25.48447769]
[1747712750031,5.29513471,2552.3,2552.2,25.111]
[1747712750530,5.29513471,2552.3,2551.9,0.46725358]
[1747712750531,3.91849529,2552.0,2551.9,0.46725358]
[1747712750818,4.46849529,2552.0,2551.9,0.46725358]
[1747712751026,3.91849529,2552.0,2551.9,0.46725358]
[1747712751706,3.91890476,2551.8,2551.6,8.195]
[1747712752106,3.91895599,2551.7,2551.6,8.195]
[1747712752306,3.91895599,2551.7,2551.6,9.0942]
[1747712752983,3.91895599,2551.7,2551.6,9.46837247]
[1747712753618,3.91895599,2551.7,2551.6,17.46837247]
[1747712754824,0.8271,2552.1,2551.6,17.46837247]
[1747712754825,0.8271,2552.1,2551.7,8.0]
[1747712755032,0.8271,2552.1,2551.6,17.46837247]
[1747712755033,3.91880241,2551.8,2551.6,9.46837247]
[1747712755214,3.91895225,2551.8,2551.7,8.94683725]
[1747712755392,0.7801,2552.7,2551.8,0.7605]
[1747712755722,3.91804192,2552.3,2551.9,0.37417247]
[1747712755919,4.69754628,2552.7,2551.9,0.37417247]
[1747712756089,3.91811669,2552.3,2551.9,2.36151557]
[1747712756506,0.07,2552.9,2551.9,10.36151557]
[1747712756707,3.91744757,2552.7,2552.2,11.91809258]
[1747712756963,3.98713091,2552.9,2552.4,8.0]
[1747712757118,3.91757423,2552.6,2552.5,0.7635]
[1747712757311,3.91757423,2552.6,2552.5,12.15095]
[1747712758046,3.91757423,2552.6,2552.5,11.38745]
[1747712758247,3.91757423,2552.6,2552.5,16.195]
[1747712758552,3.91757423,2552.6,2552.5,16.56917247]
[1747712759752,3.91757423,2552.6,2552.5,8.56917247]
[1747712759944,4.46757423,2552.6,2552.5,8.56917247]
[1747712760142,5.24817423,2552.6,2552.5,8.56917247]
[1747712760651,5.24817423,2552.6,2552.3,25.111]
[1747712760652,4.4678812,2552.4,2552.3,25.111]
[1747712762243,3.9178812,2552.4,2552.3,25.111]
[1747712763861,3.9178812,2552.4,2552.3,25.48552842]
[1747712764062,4.4678812,2552.4,2552.3,25.48552842]
[1747712764644,5.2296812,2552.4,2552.3,25.48552842]
[1747712765531,5.2296812,2552.4,2552.3,25.111]
[1747712765730,5.2296812,2552.4,2552.3,16.916]
[1747712766853,4.4678812,2552.4,2552.3,16.916]
[1747712767057,3.9178812,2552.4,2552.3,16.916]
[1747712767259,3.91772771,2552.5,2552.4,8.0]
[1747712767970,4.46772771,2552.5,2552.4,8.0]
[1747712768172,3.91772771,2552.5,2552.4,9.41319344]
[1747712768539,3.91772771,2552.5,2552.4,9.78763568]
[1747712770276,3.91772771,2552.5,2552.4,8.37444224]
[1747712770439,5.27252771,2552.5,2552.4,0.37444224]
[1747712771691,16.43783418,2552.5,2552.4,0.37444224]
[1747712771888,16.43783418,2552.5,2552.0,8.66225358]
[1747712771889,5.24444175,2552.1,2552.0,0.46725358]
[1747712772506,13.24444175,2552.1,2552.0,0.46725358]
[1747712773208,4.47033871,2550.8,2550.7,25.111]
[1747712773406,5.27893871,2550.8,2550.7,25.111]
[1747712774858,5.27893871,2550.8,2550.7,8.195]
[1747712775195,4.47033871,2550.8,2550.7,8.195]
[1747712775389,3.92033871,2550.8,2550.7,9.0145]
[1747712775756,0.8086,2551.6,2550.8,8.8133]
[1747712775956,4.72782348,2551.6,2550.8,8.8133]
[1747712776157,3.92018503,2550.9,2550.8,8.0]
[1747712776357,3.92033871,2550.8,2550.7,8.195]
[1747712778179,3.9202461,2550.9,2550.7,8.195]
[1747712778489,3.92014128,2551.0,2550.7,8.195]
[1747712778689,3.92019043,2550.9,2550.7,8.195]
[1747712779400,3.92003741,2551.0,2550.7,16.195]
[1747712779700,3.92023781,2550.9,2550.7,16.59827752]
[1747712780600,3.91998863,2551.1,2550.7,16.59827752]
[1747712780601,3.92033871,2550.8,2550.7,8.0]
[1747712780803,3.92023813,2550.9,2550.7,16.181]
[1747712781099,3.91988624,2551.1,2550.7,16.181]
[1747712781299,3.9202213,2550.9,2550.7,16.181]
[1747712781503,3.92007664,2551.0,2550.8,0.89432799]
[1747712781874,3.92018503,2550.9,2550.8,0.89432799]
[1747712782512,3.92018503,2550.9,2550.8,8.89432799]
[1747712782668,3.9195686,2551.4,2550.9,8.8214]
[1747712782873,3.91892468,2551.8,2550.9,8.8214]
[1747712782874,0.7856,2552.0,2551.2,4.69479305]
[1747712783106,3.91885347,2551.8,2551.4,8.0]
[1747712783314,3.91871298,2551.9,2551.5,0.7751]
[1747712783603,0.7856,2552.2,2551.5,0.7751]
[1747712783604,3.91910957,2551.6,2551.5,0.7751]
[1747712783779,3.91910957,2551.6,2551.5,2.47071]
[1747712784094,4.46910957,2551.6,2551.5,8.182]
[1747712784416,4.46910957,2551.6,2551.1,8.7751]
[1747712784417,3.91972405,2551.2,2551.1,8.7751]
[1747712784611,3.91972405,2551.2,2551.1,16.9571]
[1747712784774,3.91926443,2551.5,2551.1,16.9571]
[1747712785111,3.91972405,2551.2,2551.1,16.9571]
[1747712785407,3.91972405,2551.2,2551.1,20.48137021]
[1747712785912,3.91987769,2551.1,2551.0,16.922]
[1747712786214,3.91987769,2551.1,2551.0,25.104]
[1747712792834,3.9197953,2551.2,2551.0,25.104]
[1747712793136,3.91987769,2551.1,2551.0,25.104]
[1747712794029,3.91987769,2551.1,2551.0,16.922]
[1747712794209,3.91987769,2551.1,2551.0,25.104]
[1747712795413,3.91987769,2551.1,2551.0,16.922]
[1747712795732,3.91987769,2551.1,2550.8,8.182]
[1747712795733,4.47018503,2550.9,2550.8,8.182]
[1747712796033,3.92095357,2550.4,2550.3,9.23555358]
[1747712796234,3.92095357,2550.4,2550.3,17.41755358]
[1747712796711,3.92095357,2550.4,2550.3,9.41755358]
[1747712797140,4.47095357,2550.4,2550.3,8.64925358]
[1747712797316,4.47095357,2550.4,2550.3,8.182]
[1747712805939,3.92095357,2550.4,2550.3,8.182]
[1747712806139,4.74300957,2551.6,2550.3,8.9715]
[1747712806344,8.184,2551.7,2550.4,8.184]
[1747712806345,3.92079984,2550.5,2550.4,8.184]
[1747712809255,3.92066336,2550.6,2550.4,8.184]
[1747712809441,3.92055479,2550.7,2550.5,1.6478]
[1747712809642,3.92064612,2550.6,2550.5,1.6478]
[1747712810314,3.92064612,2550.6,2550.5,0.8294]
[1747712812569,3.9201968,2550.9,2550.5,8.8294]
[1747712813069,3.91944978,2551.4,2550.5,8.8294]
[1747712813070,0.55,2551.3,2550.5,8.8294]
[1747712813229,3.92059805,2550.7,2550.5,8.8294]
[1747712813430,3.92059805,2550.7,2550.6,9.70134]
[1747712813651,3.92059805,2550.7,2550.6,2.0755244]
[1747712813851,3.92059805,2550.7,2550.6,0.3741844]
[1747712814952,3.92064612,2550.6,2550.5,8.0]
[1747712815263,3.92079984,2550.5,2550.4,8.184]
[1747712815971,4.47079984,2550.5,2550.4,8.184]
[1747712818673,3.92079984,2550.5,2550.4,8.184]
[1747712818879,3.92079984,2550.5,2550.4,10.6947]
[1747712819374,3.92079984,2550.5,2550.4,11.06928074]
[1747712820386,3.92079984,2550.5,2550.4,8.55858074]
[1747712820742,5.27889984,2550.5,2550.4,8.55858074]
[1747712821780,4.47126107,2550.2,2550.1,0.05]
[1747712821941,16.39853274,2550.2,2550.1,0.05]
[1747712822368,16.39853274,2550.2,2550.1,0.00624861]
[1747712822779,12.61032242,2549.9,2548.7,8.167]
[1747712823079,12.61032242,2549.9,2549.1,0.05]
[1747712823080,4.4727993,2549.2,2549.1,0.05]
[1747712823259,4.6113993,2549.2,2549.1,0.05]
[1747712823575,5.07253923,2549.2,2549.1,0.05]
[1747712827112,3.9227993,2549.2,2549.1,0.05]
[1747712827928,4.4727993,2549.2,2549.1,0.05]
[1747712828074,3.9227993,2549.2,2549.1,0.05]
[1747712828278,4.4727993,2549.2,2549.1,0.05]
[1747712830010,4.9711993,2549.2,2549.1,0.05]
[1747712833571,4.4211993,2549.2,2549.1,0.05]
[1747712833870,3.9227993,2549.2,2549.1,0.05]
[1747712834088,4.4727993,2549.2,2549.1,0.05]
[1747712837077,3.9227993,2549.2,2549.1,0.05]
[1747712839087,4.4727993,2549.2,2549.1,0.05]
[1747712846934,4.9711993,2549.2,2549.1,0.05]
[1747712847101,12.9711993,2549.2,2549.1,0.05]
[1747712850934,4.9711993,2549.2,2549.1,0.05]
[1747712854555,12.9711993,2549.2,2549.1,0.05]
[1747712856837,4.9711993,2549.2,2549.1,0.05]
[1747712859627,4.4727993,2549.2,2549.1,0.05]
[1747712860811,12.9711993,2549.2,2549.1,0.05]
[1747712862838,21.1271993,2549.2,2549.1,0.05]
[1747712863221,12.9711993,2549.2,2549.1,0.05]
[1747712865228,13.53415233,2549.2,2549.1,0.05]
[1747712865428,14.01937425,2549.2,2549.1,0.05]
[1747712869152,18.14437425,2549.2,2549.1,0.05]
[1747712869353,4.47433874,2548.2,2548.1,0.05]
[1747712872851,3.92433874,2548.2,2548.1,0.05]
[1747712873158,4.47433874,2548.2,2548.1,0.05]
[1747712876366,4.86379681,2548.2,2548.1,0.05]
[1747712876869,13.36219681,2548.2,2548.1,0.05]
[1747712877174,4.86379681,2548.2,2548.1,0.05]
[1747712878137,8.02686848,2548.2,2548.1,0.05]
[1747712878448,13.42674984,2548.2,2548.1,0.05]
[1747712878647,12.86379681,2548.2,2548.1,0.05]
[1747712879988,4.86379681,2548.2,2548.1,0.05]
[1747712880147,4.86379681,2548.2,2548.1,0.8109]
[1747712880664,4.86379681,2548.2,2548.1,0.05]
[1747712881241,5.36219681,2548.2,2548.1,0.05]
[1747712881558,13.92514984,2548.2,2548.1,0.05]
[1747712884598,13.36219681,2548.2,2548.1,0.05]
[1747712886187,13.92514984,2548.2,2548.1,0.05]
[1747712887489,4.47557117,2547.4,2547.3,0.7574]
[1747712889863,4.47587939,2547.2,2547.1,0.05]
[1747712896569,4.47587939,2547.2,2547.1,0.836]
[1747712897809,4.47587939,2547.2,2547.1,8.978]
[1747712898006,4.47587939,2547.2,2547.1,0.836]
[1747712898188,4.47587939,2547.2,2547.1,0.05]
[1747712903997,3.92587939,2547.2,2547.1,0.05]
[1747712904202,3.92587939,2547.2,2547.1,0.8415]
[1747712904402,3.92587939,2547.2,2547.1,1.73985]
[1747712905132,0.38945807,2548.2,2547.2,0.7739]
[1747712905302,3.92449275,2548.1,2547.3,8.121]
[1747712905504,3.92540778,2547.6,2547.4,0.7739]
[1747712905699,3.92540778,2547.6,2547.4,8.0]
[1747712905913,3.92540778,2547.6,2547.5,2.386]
[1747712906111,3.92517819,2547.7,2547.6,0.7739]
[1747712907026,3.92517819,2547.7,2547.4,8.37529738]
[1747712907027,4.47541707,2547.5,2547.4,1.13379738]
[1747712907227,4.47541707,2547.5,2547.4,0.37529738]
[1747712907549,3.92572527,2547.3,2547.2,8.8785]
[1747712907915,4.47572527,2547.3,2547.2,8.8785]
[1747712909913,3.92572527,2547.3,2547.2,8.8785]
[1747712911414,4.47572527,2547.3,2547.2,8.8785]
[1747712911614,3.92587939,2547.2,2547.1,0.05]
[1747712911849,3.92587939,2547.2,2547.1,8.17]
[1747712912146,4.47587939,2547.2,2547.1,0.05]
[1747712913019,3.92587939,2547.2,2547.1,0.05]
[1747712914122,4.47587939,2547.2,2547.1,0.05]
[1747712915937,4.47587939,2547.2,2547.1,0.8221]
[1747712915938,3.92587939,2547.2,2547.1,0.8221]
[1747712920883,3.92587939,2547.2,2547.1,0.05]
[1747712921230,4.47587939,2547.2,2547.1,0.05]
[1747712926468,14.11752124,2547.2,2547.1,0.05]
[1747712926765,14.61861311,2547.2,2547.1,0.05]
[1747712927337,4.47649599,2546.8,2546.7,0.005]
[1747712927538,4.47649599,2546.8,2546.2,1.86719967]
[1747712927539,15.64895444,2546.3,2546.2,1.86719967]
[1747712927776,15.64895444,2546.3,2545.4,1.25171507]
[1747712927777,12.4775755,2546.1,2545.4,1.25171507]
[1747712927936,12.4775755,2546.1,2545.4,0.005]
[1747712927937,4.47850127,2545.5,2545.4,0.005]
[1747712929288,4.87157451,2545.5,2545.4,8.127]
[1747712930383,4.87157451,2545.5,2545.4,0.005]
[1747712930563,12.87157451,2545.5,2545.4,0.005]
[1747712930764,14.13517048,2545.5,2545.4,0.005]
[1747712931151,11.92896432,2545.2,2545.1,0.05]
[1747712931383,4.97736432,2545.2,2545.1,0.05]
[1747712934366,12.97736432,2545.2,2545.1,0.05]
[1747712936167,4.4805086,2544.2,2544.1,0.05]
[1747712936351,4.4805086,2544.2,2544.1,8.153]
[1747712937085,4.4805086,2544.2,2544.1,8.9392]
[1747712937281,3.9305086,2544.2,2544.1,8.9392]
[1747712937455,3.9305086,2544.2,2544.1,8.9402]
[1747712937645,4.4805086,2544.2,2544.1,8.154]
[1747712938051,4.4805086,2544.2,2544.1,0.05]
[1747712938382,4.4805086,2544.2,2544.1,8.154]
[1747712938747,4.86996086,2544.2,2544.1,0.05]
[1747712938984,3.9305086,2544.2,2544.1,8.154]
[1747712939189,3.9305086,2544.2,2544.1,9.7197]
[1747712939773,3.9305086,2544.2,2544.1,0.8003]
[1747712939976,3.9305086,2544.2,2544.1,8.9053]
[1747712940593,3.92961685,2544.8,2544.1,8.9053]
[1747712940594,4.42767308,2545.0,2544.1,0.05]
[1747712940765,3.9305086,2544.2,2544.1,0.05]
[1747712940962,4.4805086,2544.2,2544.1,8.155]
[1747712941178,3.9305086,2544.2,2544.1,8.155]
[1747712941397,3.9305086,2544.2,2544.1,0.05]
[1747712941592,4.4805086,2544.2,2544.1,0.05]
[1747712941794,4.4805086,2544.2,2544.1,8.155]
[1747712942000,3.9305086,2544.2,2544.1,8.155]
[1747712942202,3.9305086,2544.2,2544.1,11.5771]
[1747712942400,3.9305086,2544.2,2544.1,3.4721]
[1747712942580,3.9305086,2544.2,2544.1,25.952]
[1747712942901,4.4805086,2544.2,2544.1,8.156]
[1747712943105,4.4805086,2544.2,2544.1,8.9644]
[1747712943618,4.4805086,2544.2,2544.1,8.156]
[1747712944118,4.4805086,2544.2,2544.1,0.05]
[1747712944996,5.37781353,2544.2,2544.1,0.05]
[1747712945200,13.37781353,2544.2,2544.1,0.05]
[1747712946194,13.87530627,2544.2,2544.1,0.05]
[1747712947909,4.82781353,2544.2,2544.1,0.05]
[1747712948406,5.37781353,2544.2,2544.1,0.05]
[1747712950175,4.32941353,2544.2,2544.1,0.05]
[1747712951067,4.87941353,2544.2,2544.1,0.05]
[1747712951710,4.32941353,2544.2,2544.1,0.05]
[1747712951929,5.32941353,2544.2,2544.1,0.05]
[1747712954036,4.9305086,2544.2,2544.1,0.05]
[1747712954236,4.9305086,2544.2,2544.1,0.8473]
[1747712954540,3.9305086,2544.2,2544.1,0.8473]
[1747712954924,3.65414471,2544.2,2544.1,0.8473]
[1747712955550,3.65414471,2544.2,2544.1,8.9553]
[1747712955841,3.65414471,2544.2,2544.1,9.85083]
[1747712956603,3.93041556,2544.3,2544.2,0.8087]
[1747712958017,3.93032196,2544.4,2544.2,0.8087]
[1747712958220,3.93004519,2544.5,2544.4,0.7687]
[1747712959359,3.92991416,2544.6,2544.4,0.7687]
[1747712959521,3.92991416,2544.6,2544.5,2.55187]
[1747712960151,3.92991416,2544.6,2544.5,10.65987]
[1747712960917,3.92991416,2544.6,2544.5,2.55187]
[1747712961137,3.92991416,2544.6,2544.5,10.65887]
[1747712961826,3.92991416,2544.6,2544.5,2.55187]
[1747712962031,3.92991416,2544.6,2544.5,10.65887]
[1747712962622,3.92979978,2544.7,2544.5,2.55187]
[1747712962823,3.92989074,2544.6,2544.5,2.55187]
[1747712963022,3.92989074,2544.6,2544.5,10.65887]
[1747712964362,3.92979627,2544.7,2544.5,10.65887]
[1747712964559,3.92979627,2544.7,2544.6,1.065887]
[1747712964720,3.92958189,2544.8,2544.7,0.7779]
[1747712966463,3.92937603,2545.0,2544.7,8.107]
[1747712966762,3.92937603,2545.0,2544.8,0.7837]
[1747712966995,3.92937603,2545.0,2544.9,0.88907]
[1747712968192,3.92942748,2544.9,2544.8,0.7837]
[1747712968392,3.92942748,2544.9,2544.8,8.8897]
[1747712969290,3.93004519,2544.5,2544.4,8.0]
[1747712969477,3.93004519,2544.5,2544.4,18.6031]
[1747712969793,3.92977011,2544.7,2544.5,0.7837]
[1747712970192,3.92975267,2544.7,2544.5,0.7837]
[1747712970398,3.92989074,2544.6,2544.5,0.7837]
[1747712970695,3.92975194,2544.7,2544.5,0.7837]
[1747712970696,3.92973631,2544.7,2544.6,8.106]
[1747712970878,3.92973631,2544.7,2544.6,9.23408]
[1747712971785,3.92973631,2544.7,2544.6,1.12808]
[1747712972081,3.92973631,2544.7,2544.6,9.23408]
[1747712972653,3.929598,2544.8,2544.6,9.23408]
[1747712972654,3.92902845,2545.2,2544.6,9.23408]
[1747712972967,3.92973631,2544.7,2544.6,8.106]
[1747712973163,3.92989074,2544.6,2544.5,0.7837]
[1747712973383,3.92989074,2544.6,2544.5,8.8897]
[1747712974164,3.92989074,2544.6,2544.5,0.7837]
[1747712974398,3.9305086,2544.2,2544.1,0.8121]
[1747712974599,3.9305086,2544.2,2544.1,8.9181]
[1747712975329,3.9305086,2544.2,2544.1,8.156]
[1747712976689,3.93040757,2544.3,2544.1,8.156]
[1747712976909,3.93040757,2544.3,2544.2,0.8095]
[1747712978405,0.4984,2544.9,2544.2,8.8095]
[1747712978406,3.92950919,2544.9,2544.2,8.8095]
[1747712978607,3.92982284,2544.7,2544.3,0.8013]
[1747712978820,3.92982284,2544.7,2544.5,0.8013]
[1747712979021,3.92982284,2544.7,2544.6,8.106]